fUST/lending_fUST_20250906
["ID","MTS","AMOUNT","RATE_DAILY","PERIOD"]
[383693493,1757092257305,-480.0,0.00014307,2]
[383693494,1757092257315,-480.0,0.00014307,2]
[383693495,1757092257328,-480.0,0.00014307,2]
[383693496,1757092257338,-480.0,0.00014307,2]
[383693497,1757092257347,-480.0,0.00014307,2]
[383693498,1757092257357,-480.0,0.00014307,2]
[383693499,1757092257366,-480.0,0.00014307,2]
[383693500,1757092257375,-480.0,0.00014307,2]
[383693501,1757092257385,-482.24831046,0.00014307,2]
[383693502,1757092257395,-480.0,0.00014307,2]
[383693503,1757092257405,-480.0,0.00014307,2]
[383693504,1757092257415,-480.0,0.00014311,2]
[383693505,1757092257425,-480.0,0.00014311,2]
[383693506,1757092257434,-480.0,0.00014311,2]
[383693507,1757092257444,-521.70630398,0.00014321,2]
[383693508,1757092257454,-206.67670021,0.00014481,2]
[383693509,1757092257463,-500.0,0.00014481,2]
[383693510,1757092257474,-157.0,0.00014481,2]
[383693511,1757092257483,-157.0,0.00014481,2]
[383693512,1757092257493,-480.0,0.0001452,2]
[383693513,1757092257505,-483.29408813,0.0001452,2]
[383693514,1757092257515,-480.0,0.0001452,2]
[383693515,1757092257525,-480.0,0.0001452,2]
[383693516,1757092257539,-593.59,0.0001452,2]
[383693517,1757092257548,-480.0,0.0001452,2]
[383693518,1757092257559,-480.0,0.0001452,2]
[383693519,1757092257567,-480.0,0.0001452,2]
[383693520,1757092257577,-480.0,0.0001452,2]
[383693521,1757092257585,-480.0,0.0001452,2]
[383693522,1757092257594,-264.46885906,0.0001452,2]
[383693523,1757092257602,-480.0,0.0001452,2]
[383693524,1757092257611,-480.0,0.0001452,2]
[383693525,1757092257620,-480.0,0.0001452,2]
[383693526,1757092257629,-480.0,0.0001452,2]
[383693527,1757092257637,-480.0,0.0001452,2]
[383693528,1757092257647,-480.0,0.0001452,2]
[383693529,1757092257656,-499.22,0.0001452,2]
[383693530,1757092257666,-480.0,0.0001452,2]
[383693531,1757092257676,-480.0,0.0001452,2]
[383693532,1757092257685,-480.0,0.0001452,2]
[383693533,1757092257694,-480.0,0.0001452,2]
[383693534,1757092257704,-480.0,0.0001452,2]
[383693535,1757092257713,-480.0,0.0001452,2]
[383693536,1757092257724,-480.0,0.0001452,2]
[383693537,1757092257733,-480.0,0.0001452,2]
[383693538,1757092257743,-480.0,0.0001452,2]
[383693539,1757092257752,-480.0,0.0001452,2]
[383693540,1757092257762,-480.0,0.0001452,2]
[383693541,1757092257771,-480.0,0.0001452,2]
[383693542,1757092257781,-480.0,0.0001452,2]
[383693543,1757092257791,-689.97,0.0001452,2]
[383693544,1757092257802,-480.0,0.0001452,2]
[383693545,1757092257812,-480.0,0.0001452,2]
[383693546,1757092257824,-532.6,0.0001452,2]
[383693547,1757092257833,-480.0,0.0001452,2]
[383693548,1757092257843,-480.0,0.0001452,2]
[383693549,1757092257853,-480.0,0.0001452,2]
[383693550,1757092257863,-480.0,0.0001452,2]
[383693551,1757092257872,-480.0,0.0001452,2]
[383693552,1757092257882,-480.0,0.0001452,2]
[383693553,1757092257892,-480.0,0.0001452,2]
[383693554,1757092257901,-480.0,0.0001452,2]
[383693555,1757092257911,-480.0,0.0001452,2]
[383693556,1757092257921,-480.0,0.0001452,2]
[383693557,1757092257930,-480.0,0.0001452,2]
[383693558,1757092257940,-624.68435729,0.0001452,2]
[383693559,1757092257949,-480.0,0.0001452,2]
[383693560,1757092257959,-480.0,0.0001452,2]
[383693561,1757092257968,-480.0,0.0001452,2]
[383693562,1757092257979,-480.0,0.0001452,2]
[383693563,1757092257990,-480.0,0.0001452,2]
[383693564,1757092257999,-480.0,0.0001452,2]
[383693565,1757092258009,-480.0,0.0001452,2]
[383693566,1757092258018,-480.0,0.0001452,2]
[383693567,1757092258028,-376.78,0.0001452,2]
[383693568,1757092258038,-480.0,0.0001452,2]
[383693569,1757092258047,-480.0,0.0001452,2]
[383693570,1757092258057,-480.0,0.0001452,2]
[383693571,1757092258067,-480.0,0.0001452,2]
[383693572,1757092258078,-480.0,0.0001452,2]
[383693573,1757092258088,-480.0,0.0001452,2]
[383693574,1757092258098,-480.0,0.0001452,2]
[383693575,1757092258108,-480.0,0.0001452,2]
[383693576,1757092258117,-480.0,0.0001452,2]
[383693577,1757092258127,-1127.02,0.0001452,2]
[383693578,1757092258136,-2143.8,0.0001452,2]
[383693579,1757092258145,-480.0,0.0001452,2]
[383693580,1757092258155,-480.0,0.0001452,2]
[383693581,1757092258164,-480.0,0.0001452,2]
[383693582,1757092258173,-764.73,0.0001452,2]
[383693583,1757092258183,-480.0,0.0001452,2]
[383693584,1757092258192,-480.0,0.0001452,2]
[383693585,1757092258202,-480.0,0.0001452,2]
[383693586,1757092258211,-480.0,0.0001452,2]
[383693587,1757092258221,-480.0,0.0001452,2]
[383693588,1757092258231,-480.0,0.0001452,2]
[383693589,1757092258240,-480.0,0.0001452,2]
[383693590,1757092258250,-480.0,0.0001452,2]
[383693591,1757092258259,-187.1,0.0001452,2]
[383693592,1757092258269,-747.94,0.0001452,2]
[383693593,1757092258278,-816.77,0.0001452,2]
[383693594,1757092258287,-480.0,0.0001452,2]
[383693595,1757092258297,-480.0,0.0001452,2]
[383693596,1757092258306,-480.0,0.0001452,2]
[383693597,1757092258315,-480.0,0.0001452,2]
[383693598,1757092258324,-480.0,0.0001452,2]
[383693599,1757092258334,-2845.18,0.0001452,2]
[383693600,1757092258343,-1994.14,0.0001452,2]
[383693601,1757092258352,-480.0,0.0001452,2]
[383693602,1757092258360,-480.0,0.0001452,2]
[383693603,1757092258368,-480.0,0.0001452,2]
[383693604,1757092258377,-480.0,0.0001452,2]
[383693605,1757092258385,-480.0,0.0001452,2]
[383693606,1757092258395,-480.0,0.0001452,2]
[383693607,1757092258405,-1016.92,0.0001452,2]
[383693608,1757092258414,-480.0,0.0001452,2]
[383693609,1757092258423,-480.0,0.0001452,2]
[383693610,1757092258433,-622.16,0.0001452,2]
[383693611,1757092258442,-480.0,0.0001452,2]
[383693612,1757092258451,-853.27,0.0001452,2]
[383693613,1757092258461,-577.71,0.0001452,2]
[383693614,1757092258470,-640.69,0.0001452,2]
[383693615,1757092258480,-480.0,0.0001452,2]
[383693616,1757092258489,-480.0,0.0001452,2]
[383693617,1757092258499,-480.0,0.0001452,2]
[383693618,1757092258508,-480.0,0.0001452,2]
[383693619,1757092258518,-480.0,0.0001452,2]
[383693620,1757092258529,-480.0,0.0001452,2]
[383693621,1757092258540,-2122.54,0.0001452,2]
[383693622,1757092258550,-480.0,0.0001452,2]
[383693623,1757092258641,-153.9554693,0.0001452,2]
[383693624,1757092258652,-480.0,0.0001452,2]
[383693625,1757092258662,-480.0,0.0001452,2]
[383693626,1757092258671,-312.10125981,0.0001452,2]
[383693627,1757092258682,-480.0,0.0001452,2]
[383693628,1757092258692,-712.76,0.0001452,2]
[383693629,1757092258701,-480.0,0.0001452,2]
[383693630,1757092258711,-480.0,0.0001452,2]
[383693631,1757092258720,-480.0,0.0001452,2]
[383693632,1757092258730,-480.0,0.0001452,2]
[383693633,1757092258741,-480.0,0.0001452,2]
[383693634,1757092258751,-480.0,0.0001452,2]
[383693635,1757092258760,-562.0,0.0001452,2]
[383693636,1757092258770,-480.0,0.0001452,2]
[383693637,1757092258779,-593.39,0.0001452,2]
[383693638,1757092258789,-480.0,0.0001452,2]
[383693639,1757092258799,-509.73673879,0.0001452,2]
[383693640,1757092258808,-480.0,0.0001452,2]
[383693641,1757092258818,-480.0,0.0001452,2]
[383693642,1757092258827,-548.34,0.0001452,2]
[383693643,1757092258837,-480.0,0.0001452,2]
[383693644,1757092258846,-622.44585856,0.0001452,2]
[383693645,1757092258857,-480.0,0.0001452,2]
[383693646,1757092258866,-480.0,0.0001452,2]
[383693647,1757092258876,-1017.97,0.0001452,2]
[383693648,1757092258887,-481.52879775,0.0001452,2]
[383693649,1757092258897,-480.0,0.0001452,2]
[383693650,1757092258906,-480.0,0.0001452,2]
[383693651,1757092258916,-480.0,0.0001452,2]
[383693652,1757092258926,-3534.78,0.0001452,2]
[383693653,1757092258936,-480.0,0.0001452,2]
[383693654,1757092258947,-480.0,0.0001452,2]
[383693655,1757092258957,-480.0,0.0001452,2]
[383693656,1757092258967,-480.0,0.0001452,2]
[383693657,1757092258977,-480.0,0.0001452,2]
[383693658,1757092258986,-480.0,0.0001452,2]
[383693659,1757092258996,-480.0,0.0001452,2]
[383693660,1757092259006,-480.0,0.0001452,2]
[383693661,1757092259015,-480.0,0.0001452,2]
[383693662,1757092259025,-480.0,0.0001452,2]
[383693663,1757092259035,-480.0,0.00014581,2]
[383693664,1757092259045,-480.0,0.00014581,2]
[383693665,1757092259055,-480.0,0.00014581,2]
[383693666,1757092259065,-480.0,0.00014581,2]
[383693667,1757092259074,-370.90873785,0.00014581,2]
[383693668,1757092259085,-480.0,0.00014581,2]
[383693669,1757092259095,-480.0,0.00014581,2]
[383693670,1757092259104,-480.0,0.00014581,2]
[383693671,1757092259114,-480.0,0.00014581,2]
[383693672,1757092259124,-480.0,0.00014581,2]
[383693673,1757092259133,-480.0,0.00014581,2]
[383693674,1757092259143,-480.0,0.00014581,2]
[383693675,1757092259151,-480.0,0.00014581,2]
[383693676,1757092259161,-480.0,0.00014581,2]
[383693677,1757092259170,-269.0440339,0.00014581,2]
[383693678,1757092259180,-480.0,0.00014581,2]
[383693679,1757092259189,-480.0,0.00014581,2]
[383693680,1757092259199,-506.8797394,0.00014581,2]
[383693681,1757092259208,-480.0,0.00014581,2]
[383693682,1757092259217,-480.0,0.00014581,2]
[383693683,1757092259227,-480.0,0.00014581,2]
[383693684,1757092259236,-480.0,0.00014581,2]
[383693685,1757092259245,-464.82710566,0.00014585,2]
[383693686,1757092259254,-480.0,0.00014585,2]
[383693687,1757092259264,-480.0,0.00014585,2]
[383693688,1757092259273,-151.0,0.000146,2]
[383693689,1757092259284,-22309.888401,0.00014641,2]
[383693690,1757092259293,-500.0,0.00014681,2]
[383693691,1757092259302,-500.69057882,0.00014681,2]
[383693692,1757092259311,-500.0,0.00014681,2]
[383693693,1757092259321,-151.0,0.000147,2]
[383693694,1757092259331,-500.0,0.00014709,2]
[383693695,1757092259340,-500.0,0.00014726,2]
[383693696,1757092259350,-500.0,0.00014726,2]
[383693697,1757092259359,-500.0,0.00014726,2]
[383693698,1757092259369,-500.25309275,0.00014726,2]
[383693699,1757092259378,-500.16386099,0.00014726,2]
[383693700,1757092259388,-500.0,0.00014726,2]
[383693701,1757092259398,-500.0,0.00014726,2]
[383693702,1757092259407,-500.0,0.00014726,2]
[383693703,1757092259417,-500.0,0.00014726,2]
[383693704,1757092259426,-169.84930271,0.00014726,2]
[383693705,1757092259435,-500.0,0.00014726,2]
[383693706,1757092259445,-500.0,0.00014726,2]
[383693707,1757092259455,-500.0,0.00014726,2]
[383693708,1757092259465,-527.57086927,0.00014726,2]
[383693709,1757092259474,-202.45355063,0.00014726,2]
[383693710,1757092259484,-500.0,0.00014726,2]
[383693711,1757092259493,-500.0,0.00014726,2]
[383693712,1757092259503,-500.0,0.00014726,2]
[383693713,1757092259513,-500.0,0.00014726,2]
[383693714,1757092259523,-500.0,0.00014726,2]
[383693715,1757092259536,-500.0,0.00014726,2]
[383693716,1757092259546,-500.0,0.00014726,2]
[383693717,1757092259555,-173.35808123,0.00014726,2]
[383693718,1757092259565,-447.26021461,0.00014726,2]
[383693719,1757092259574,-500.0,0.00014726,2]
[383693720,1757092259586,-520.0,0.00014745,2]
[383693721,1757092259596,-500.0,0.00014747,2]
[383693722,1757092259606,-500.0,0.00014747,2]
[383693723,1757092259616,-500.0,0.00014747,2]
[383693724,1757092259626,-500.0,0.00014747,2]
[383693725,1757092259635,-500.0,0.00014747,2]
[383693726,1757092259644,-500.0,0.00014747,2]
[383693727,1757092259653,-502.50935352,0.00014747,2]
[383693728,1757092259662,-500.0,0.00014747,2]
[383693729,1757092259671,-500.0,0.00014747,2]
[383693730,1757092259680,-500.0,0.00014747,2]
[383693731,1757092259689,-500.13504507,0.00014747,2]
[383693732,1757092259698,-514.59224484,0.00014747,2]
[383693733,1757092259707,-500.0,0.00014747,2]
[383693734,1757092259716,-523.92342404,0.00014747,2]
[383693735,1757092259725,-500.21008796,0.00014747,2]
[383693736,1757092259734,-500.0,0.00014747,2]
[383693737,1757092259744,-500.84012531,0.00014747,2]
[383693738,1757092259753,-420.0,0.00014747,2]
[383693739,1757092259762,-500.0,0.00014755,2]
[383693740,1757092259771,-174.0,0.00014755,2]
[383693741,1757092259779,-229.53790365,0.00014755,2]
[383693742,1757092259787,-155.16698229,0.0001476,2]
[383693743,1757092259795,-500.0,0.0001476,2]
[383693744,1757092259803,-500.0,0.0001476,2]
[383693745,1757092259812,-500.0,0.0001476,2]
[383693746,1757092259821,-500.0,0.0001476,2]
[383693747,1757092259830,-500.0,0.0001476,2]
[383693748,1757092259839,-500.0,0.0001476,2]
[383693749,1757092259848,-500.0,0.0001476,2]
[383693750,1757092259857,-500.0,0.0001476,2]
[383693751,1757092259866,-1500.0,0.00014768,2]
[383693752,1757092259876,-1500.0,0.00014768,2]
[383693753,1757092259885,-1500.0,0.00014768,2]
[383693754,1757092259894,-1500.0,0.00014768,2]
[383693755,1757092259903,-1500.0,0.00014768,2]
[383693756,1757092259978,-1500.0,0.00014768,2]
[383693757,1757092259987,-500.0,0.00014769,2]
[383693758,1757092259996,-500.0,0.00014769,2]
[383693759,1757092260005,-500.4054744,0.00014769,2]
[383693760,1757092260015,-500.0,0.00014769,2]
[383693761,1757092260024,-500.0,0.00014769,2]
[383693762,1757092260033,-500.0,0.00014769,2]
[383693763,1757092260042,-500.0,0.00014772,2]
[383693764,1757092260051,-500.0,0.00014772,2]
[383693765,1757092260060,-500.0,0.00014772,2]
[383693766,1757092260070,-500.0,0.00014772,2]
[383693767,1757092260080,-500.0,0.00014773,2]
[383693768,1757092260089,-579.82915608,0.00014773,2]
[383693769,1757092260098,-339.74142587,0.00014773,2]
[383693770,1757092260107,-500.0,0.00014773,2]
[383693771,1757092260116,-500.0,0.00014773,2]
[383693772,1757092260125,-500.0,0.00014773,2]
[383693773,1757092260134,-500.0,0.00014773,2]
[383693774,1757092260143,-500.0,0.00014773,2]
[383693775,1757092260153,-189.1345363,0.00014791,2]
[383693776,1757092260162,-480.0,0.00014794,2]
[383693777,1757092260172,-543.33,0.00014794,2]
[383693778,1757092260182,-480.0,0.00014794,2]
[383693779,1757092260192,-261.6,0.00014794,2]
[383693780,1757092260202,-480.0,0.00014794,2]
[383693781,1757092260211,-482.3,0.00014794,2]
[383693782,1757092260222,-480.0,0.00014794,2]
[383693783,1757092260232,-480.0,0.00014794,2]
[383693784,1757092260242,-479.27119737,0.00014794,2]
[383693785,1757092260252,-480.0,0.00014794,2]
[383693786,1757092260262,-480.0,0.00014794,2]
[383693787,1757092260271,-480.0,0.00014794,2]
[383693788,1757092260281,-480.0,0.00014794,2]
[383693789,1757092260291,-591.73725784,0.00014794,2]
[383693790,1757092260300,-480.0,0.00014794,2]
[383693791,1757092260310,-480.0,0.00014794,2]
[383693792,1757092260319,-480.0,0.00014794,2]
[383693793,1757092260330,-480.0,0.00014794,2]
[383693794,1757092260339,-533.09,0.00014794,2]
[383693795,1757092260349,-480.0,0.00014794,2]
[383693796,1757092260359,-689.97,0.00014794,2]
[383693797,1757092260369,-480.0,0.00014794,2]
[383693798,1757092260379,-386.7781081,0.00014794,2]
[383693799,1757092260388,-480.0,0.00014794,2]
[383693800,1757092260397,-480.0,0.00014794,2]
[383693801,1757092260407,-480.0,0.00014794,2]
[383693802,1757092260417,-448.31201747,0.00014794,2]
[383693803,1757092260427,-480.0,0.00014794,2]
[383693804,1757092260437,-480.0,0.00014794,2]
[383693805,1757092260448,-480.0,0.00014794,2]
[383693806,1757092260457,-480.0,0.00014794,2]
[383693807,1757092260467,-508.64,0.00014794,2]
[383693808,1757092260477,-480.0,0.00014794,2]
[383693809,1757092260487,-480.0,0.00014794,2]
[383693810,1757092260497,-480.0,0.00014794,2]
[383693811,1757092260507,-480.0,0.00014794,2]
[383693812,1757092260516,-480.0,0.00014794,2]
[383693813,1757092260526,-281.12,0.00014794,2]
[383693814,1757092260540,-480.0,0.00014794,2]
[383693815,1757092260550,-480.0,0.00014794,2]
[383693816,1757092260561,-480.0,0.00014794,2]
[383693817,1757092260570,-480.0,0.00014794,2]
[383693818,1757092260581,-533.97,0.00014794,2]
[383693819,1757092260590,-480.0,0.00014794,2]
[383693820,1757092260601,-480.0,0.00014794,2]
[383693821,1757092260615,-480.0,0.00014794,2]
[383693822,1757092260625,-480.0,0.00014794,2]
[383693823,1757092260635,-480.0,0.00014794,2]
[383693824,1757092260644,-551.80838126,0.00014794,2]
[383693825,1757092260655,-1127.02,0.00014794,2]
[383693826,1757092260664,-2143.8,0.00014794,2]
[383693827,1757092260674,-480.0,0.00014794,2]
[383693828,1757092260683,-480.0,0.00014794,2]
[383693829,1757092260692,-480.0,0.00014794,2]
[383693830,1757092260701,-764.73,0.00014794,2]
[383693831,1757092260711,-480.0,0.00014794,2]
[383693832,1757092260721,-480.0,0.00014794,2]
[383693833,1757092260730,-480.0,0.00014794,2]
[383693834,1757092260739,-480.0,0.00014794,2]
[383693835,1757092260749,-480.0,0.00014794,2]
[383693836,1757092260758,-304.87579116,0.00014794,2]
[383693837,1757092260766,-480.0,0.00014794,2]
[383693838,1757092260775,-747.94,0.00014794,2]
[383693839,1757092260786,-816.77,0.00014794,2]
[383693840,1757092260796,-587.14643588,0.00014794,2]
[383693841,1757092260805,-280.33,0.00014794,2]
[383693842,1757092260815,-480.0,0.00014794,2]
[383693843,1757092260824,-480.0,0.00014794,2]
[383693844,1757092260833,-480.0,0.00014794,2]
[383693845,1757092260842,-2845.18,0.00014794,2]
[383693846,1757092260851,-1994.14,0.00014794,2]
[383693847,1757092260860,-480.0,0.00014794,2]
[383693848,1757092260868,-480.0,0.00014794,2]
[383693849,1757092260877,-480.0,0.00014794,2]
[383693850,1757092260887,-480.0,0.00014794,2]
[383693851,1757092260896,-480.0,0.00014794,2]
[383693852,1757092260905,-480.0,0.00014794,2]
[383693853,1757092260914,-1016.92,0.00014794,2]
[383693854,1757092260923,-480.0,0.00014794,2]
[383693855,1757092260932,-853.27,0.00014794,2]
[383693856,1757092260941,-577.71,0.00014794,2]
[383693857,1757092260951,-640.69,0.00014794,2]
[383693858,1757092260961,-480.0,0.00014794,2]
[383693859,1757092260970,-480.0,0.00014794,2]
[383693860,1757092260979,-480.0,0.00014794,2]
[383693861,1757092260989,-541.67361575,0.00014794,2]
[383693862,1757092260998,-480.0,0.00014794,2]
[383693863,1757092261008,-2122.54,0.00014794,2]
[383693864,1757092261018,-480.0,0.00014794,2]
[383693865,1757092261027,-480.0,0.00014794,2]
[383693866,1757092261036,-480.0,0.00014794,2]
[383693867,1757092261045,-480.0,0.00014794,2]
[383693868,1757092261054,-712.76,0.00014794,2]
[383693869,1757092261063,-480.0,0.00014794,2]
[383693870,1757092261073,-480.0,0.00014794,2]
[383693871,1757092261083,-480.0,0.00014794,2]
[383693872,1757092261093,-480.0,0.00014794,2]
[383693873,1757092261102,-480.0,0.00014794,2]
[383693874,1757092261112,-480.0,0.00014794,2]
[383693875,1757092261121,-562.0,0.00014794,2]
[383693876,1757092261131,-480.0,0.00014794,2]
[383693877,1757092261140,-593.39,0.00014794,2]
[383693878,1757092261206,-480.0,0.00014794,2]
[383693879,1757092261222,-480.0,0.00014794,2]
[383693880,1757092261232,-548.34,0.00014794,2]
[383693881,1757092261241,-480.0,0.00014794,2]
[383693882,1757092261251,-480.0,0.00014794,2]
[383693883,1757092261260,-1017.97,0.00014794,2]
[383693884,1757092261268,-480.0,0.00014794,2]
[383693885,1757092261277,-480.0,0.00014794,2]
[383693886,1757092261287,-3534.78,0.00014794,2]
[383693887,1757092261297,-480.0,0.00014794,2]
[383693888,1757092261306,-480.0,0.00014794,2]
[383693889,1757092261315,-480.0,0.00014794,2]
[383693890,1757092261324,-480.0,0.00014794,2]
[383693891,1757092261333,-480.0,0.00014794,2]
[383693892,1757092261343,-480.0,0.00014794,2]
[383693893,1757092261352,-480.0,0.00014794,2]
[383693894,1757092261361,-484.0878355,0.00014794,2]
[383693895,1757092261371,-480.0,0.00014794,2]
[383693896,1757092261380,-480.0,0.00014855,2]
[383693897,1757092261390,-480.0,0.00014855,2]
[383693898,1757092261400,-480.0,0.00014855,2]
[383693899,1757092261409,-480.0,0.00014855,2]
[383693900,1757092261419,-480.0,0.00014855,2]
[383693901,1757092261429,-480.0,0.00014855,2]
[383693902,1757092261438,-480.0,0.00014855,2]
[383693903,1757092261447,-480.0,0.00014855,2]
[383693904,1757092261456,-480.0,0.00014855,2]
[383693905,1757092261466,-480.0,0.00014855,2]
[383693906,1757092261475,-493.27,0.00014855,2]
[383693907,1757092261485,-480.0,0.00014855,2]
[383693908,1757092261495,-480.0,0.00014855,2]
[383693909,1757092261505,-516.40320907,0.00014855,2]
[383693910,1757092261517,-480.0,0.00014855,2]
[383693911,1757092261527,-480.0,0.00014855,2]
[383693912,1757092261545,-480.0,0.00014859,2]
[383693913,1757092261554,-480.0,0.00014859,2]
[383693914,1757092261564,-2323.51603255,0.00014906,2]
[383693915,1757092261575,-160.0,0.00014998,2]
[383693916,1757092261585,-160.0,0.00014998,2]
[383693917,1757092261595,-160.0,0.00014998,2]
[383693918,1757092261604,-160.0,0.00014998,2]
[383693919,1757092261616,-259.32217601,0.00015,2]
[383693920,1757092261626,-500.0,0.00015029,2]
[383693921,1757092261636,-800.0,0.0001505,2]
[383693922,1757092261646,-800.0,0.00015056,2]
[383693923,1757092261655,-550.97544019,0.00015068,2]
[383693924,1757092261665,-480.0,0.00015068,2]
[383693925,1757092261675,-486.1,0.00015068,2]
[383693926,1757092261685,-379.8,0.00015068,2]
[383693927,1757092261695,-155.28,0.00015068,2]
[383693928,1757092261705,-480.0,0.00015068,2]
[383693929,1757092261716,-481.05,0.00015068,2]
[383693930,1757092261726,-480.0,0.00015068,2]
[383693931,1757092261735,-480.0,0.00015068,2]
[383693932,1757092261746,-480.0,0.00015068,2]
[383693933,1757092261756,-689.97,0.00015068,2]
[383693934,1757092261766,-257.61,0.00015068,2]
[383693935,1757092261776,-480.0,0.00015068,2]
[383693936,1757092261787,-480.0,0.00015068,2]
[383693937,1757092261796,-480.0,0.00015068,2]
[383693938,1757092261806,-480.0,0.00015068,2]
[383693939,1757092261815,-480.0,0.00015068,2]
[383693940,1757092261825,-480.0,0.00015068,2]
[383693941,1757092261834,-480.0,0.00015068,2]
[383693942,1757092261843,-193.61,0.00015068,2]
[383693943,1757092261853,-480.0,0.00015068,2]
[383693944,1757092261863,-508.98,0.00015068,2]
[383693945,1757092261873,-480.0,0.00015068,2]
[383693946,1757092261883,-480.0,0.00015068,2]
[383693947,1757092261893,-480.0,0.00015068,2]
[383693948,1757092261902,-1127.02,0.00015068,2]
[383693949,1757092261912,-2143.8,0.00015068,2]
[383693950,1757092261925,-480.0,0.00015068,2]
[383693951,1757092261936,-480.0,0.00015068,2]
[383693952,1757092261946,-764.73,0.00015068,2]
[383693953,1757092261956,-480.0,0.00015068,2]
[383693954,1757092261966,-207.53,0.00015068,2]
[383693955,1757092261976,-289.41551961,0.00015068,2]
[383693956,1757092261988,-480.0,0.00015068,2]
[383693957,1757092261997,-480.0,0.00015068,2]
[383693958,1757092262006,-747.94,0.00015068,2]
[383693959,1757092262016,-816.77,0.00015068,2]
[383693960,1757092262025,-577.33,0.00015068,2]
[383693961,1757092262035,-480.0,0.00015068,2]
[383693962,1757092262045,-2845.18,0.00015068,2]
[383693963,1757092262055,-1994.14,0.00015068,2]
[383693964,1757092262065,-480.0,0.00015068,2]
[383693965,1757092262075,-480.0,0.00015068,2]
[383693966,1757092262085,-480.0,0.00015068,2]
[383693967,1757092262095,-1016.92,0.00015068,2]
[383693968,1757092262105,-480.0,0.00015068,2]
[383693969,1757092262114,-853.27,0.00015068,2]
[383693970,1757092262124,-577.71,0.00015068,2]
[383693971,1757092262133,-640.69,0.00015068,2]
[383693972,1757092262142,-314.17,0.00015068,2]
[383693973,1757092262151,-480.0,0.00015068,2]
[383693974,1757092262160,-480.0,0.00015068,2]
[383693975,1757092262170,-480.0,0.00015068,2]
[383693976,1757092262180,-2122.54,0.00015068,2]
[383693977,1757092262189,-480.0,0.00015068,2]
[383693978,1757092262199,-480.0,0.00015068,2]
[383693979,1757092262208,-480.0,0.00015068,2]
[383693980,1757092262217,-712.76,0.00015068,2]
[383693981,1757092262226,-388.37800109,0.00015068,2]
[383693982,1757092262237,-480.0,0.00015068,2]
[383693983,1757092262247,-480.0,0.00015068,2]
[383693984,1757092262257,-480.0,0.00015068,2]
[383693985,1757092262267,-480.0,0.00015068,2]
[383693986,1757092262277,-173.55213712,0.00015068,2]
[383693987,1757092262287,-562.0,0.00015068,2]
[383693988,1757092262296,-593.39,0.00015068,2]
[383693989,1757092262306,-480.0,0.00015068,2]
[383693990,1757092262316,-480.0,0.00015068,2]
[383693991,1757092262393,-548.34,0.00015068,2]
[383693992,1757092262403,-480.0,0.00015068,2]